Workbook

Sheet Category List (hidden)
A1: CATEGORIES
A2: Clothing/Hair
A3: Eating Out
A4: EJ's Gross
A5: EJ's Net
A6: EJ's tips
A7: Fast Offerings
A8: Fun
A9: Gas
A10: Groceries
A11: Gym
A12: Insurance/Car
A13: Jeff's Gross
A14: Jeff's Net
A15: Medical/Health
A16: Misc
A17: Rent
A18: Renter's Insurance
A19: Savings
A20: School
A21: Tithing
A22: Travel
A23: Utilities/Laundry/Rentals

Sheet Budget Summary
A1: Year | B1: Month | C1: Budget | D1: Actual | E1: Variance
A2: 2012 | B2: January | E2: =C2-D2 -> 0
B3: February | E3: 0
B4: March | E4: 0
B5: April | E5: 0
B6: May | E6: 0
B7: June | E7: 0
B8: July | E8: 0
B9: August | E9: 0
B10: September | E10: 0
B11: October | C11: ='Detailed Budget'!B33 -> 2315 | D11: ='Detailed Budget'!C33 -> 2347.37 | E11: -32.37
B12: November | C12: ='Detailed Budget'!E33 -> 1035 | D12: ='Detailed Budget'!F33 -> 924.84 | E12: 110.16
B13: December | C13: ='Detailed Budget'!H33 -> 0 | D13: ='Detailed Budget'!I33 -> 36.4 | E13: -36.4
A14: 2013 | B14: January | E14: 0
B15: February | E15: 0
B16: March | E16: 0
B17: April | E17: 0
B18: May | E18: 0
B19: June | E19: 0
B20: July | E20: 0
B21: August | E21: 0
B22: September | E22: 0
B23: October | E23: 0
B24: November | E24: 0
B25: December | E25: 0
A26: 2014 | B26: January | E26: 0
B27: February | E27: 0
B28: March | E28: 0
B29: April | E29: 0
B30: May | E30: 0
B31: June | E31: 0
B32: July | E32: 0
B33: August | E33: 0
B34: September | E34: 0
B35: October | E35: 0
B36: November | E36: 0
B37: December | E37: 0

Sheet Expenses List
A1: Description | B1: Category | C1: Amount | D1: Month | E1: Year
A2: Rent (accidentally paid it early) | B2: Rent | C2: 567.27 | D2: November | E2: 2012
A3: Haircut | B3: Clothing/Hair | C3: 15 | D3: October | E3: 2012
A4: KK Doughnuts | B4: Eating Out | C4: 4.31 | D4: October | E4: 2012
A5: Pirate O's Adventure | B5: Eating Out | C5: 7.24 | D5: October | E5: 2012
A6: Ikea Food | B6: Eating Out | C6: 4.3 | D6: October | E6: 2012
A7: Hot Chocolate (2) | B7: Eating Out | C7: 2.5 | D7: October | E7: 2012
A8: Fast Offering | B8: Fast Offerings | C8: 20 | D8: October | E8: 2012
A9: Ikea stuff for Mom/ frozen meatballs | B9: Fun | C9: 36.67 | D9: October | E9: 2012
A10: Quarry Membership | B10: Fun | C10: 69.39 | D10: October | E10: 2012
A11: Cut the Rope Phone Ap | B11: Fun | C11: 0.99 | D11: October | E11: 2012
A12: Dollar Theatre | B12: Fun | C12: 2 | D12: October | E12: 2012
A13: Floral Stuff | B13: Fun | C13: 31.42 | D13: October | E13: 2012
A14: Gas | B14: Gas | C14: 48.92 | D14: October | E14: 2012
A15: Gas | B15: Gas | C15: 53.73 | D15: October | E15: 2012
A16: Gas | B16: Gas | C16: 47.22 | D16: October | E16: 2012
A17: Groceries- Macey's | B17: Groceries | C17: 99.26 | D17: October | E17: 2012
A18: Groceries | B18: Groceries | C18: 64.01 | D18: October | E18: 2012
A19: Groceries | B19: Groceries | C19: 23.33 | D19: October | E19: 2012
A20: Buy Low | B20: Groceries | C20: 23.33 | D20: October | E20: 2012
A21: Smiths | B21: Groceries | C21: 31.96 | D21: October | E21: 2012
A22: Car Side Mirror | B22: Insurance/Car | C22: 27.85 | D22: October | E22: 2012
A23: Birth Control | B23: Medical/Health | C23: 4 | D23: October | E23: 2012
A24: Computer Repair | B24: Misc | C24: 229.95 | D24: October | E24: 2012
A25: Flowers - HobLob | B25: Misc | C25: 45.26 | D25: October | E25: 2012
A26: Bike, Helmet, and Lock | B26: Misc | C26: 200.88 | D26: October | E26: 2012
A27: Rent | B27: Rent | C27: 611 | D27: October | E27: 2012
A28: Textbook | B28: School | C28: 30.45 | D28: October | E28: 2012
A29: BAP Membership Renewal | B29: School | C29: 5 | D29: October | E29: 2012
A30: Tithing | B30: Tithing | C30: 200 | D30: October | E30: 2012
A31: Tithing | B31: Tithing | C31: 257 | D31: October | E31: 2012
A32: Christmas Plane Tickets | B32: Travel | C32: 602.4 | D32: October | E32: 2012
A33: Sig Card | B33: Utilities/Laundry/Rentals | C33: 15 | D33: October | E33: 2012
A34: Signature Card | B34: Utilities/Laundry/Rentals | C34: 10 | D34: October | E34: 2012
A35: Big O Tire | B35: Travel | C35: 514.02 | D35: November | E35: 2012
A36: Smiths Food #4144 | B36: Groceries | C36: 57.69 | D36: November | E36: 2012
A37: Holiday Oil #15 Orem Ut | B37: Gas | C37: 52.3 | D37: November | E37: 2012
A38: Village Shop #6 Henderson Nv | B38: Gas | C38: 29 | D38: November | E38: 2012
A39: Subway 00261511 Henderson Nv | B39: Eating Out | C39: 5.41 | D39: November | E39: 2012
A40: Circle K 07929 Prescott Az | B40: Gas | C40: 28.91 | D40: November | E40: 2012
A41: Texaco 00304813 St. George Ut | B41: Eating Out | C41: 1.84 | D41: November | E41: 2012
A42: Cafe Rio Provo Q35 Provo Ut | B42: Eating Out | C42: 8.51 | D42: November | E42: 2012
A43: Holiday Oil #15 Orem Ut | B43: Gas | C43: 22.48 | D43: November | E43: 2012
A44: Ta #094 Kingman Az Kingman Az | B44: Gas | C44: 28.79 | D44: November | E44: 2012
A45: Texaco 00304813 St. George Ut | B45: Gas | C45: 41.4 | D45: November | E45: 2012
A46: Express Shuttle 801-5961600 Ut | B46: Travel | C46: 38 | D46: November | E46: 2012
A47: Chevron 00072863 Orem Ut | B47: Gas | C47: 43.24 | D47: November | E47: 2012
A48: Reimbursement Check | B48: Travel | C48: -514.02 | D48: November | E48: 2012
A49: Chevron 00072863 Orem Ut | B49: Misc | C49: 36.4 | D49: December | E49: 2012
A50: Tithing | B50: Tithing | C50: 50 | D50: November | E50: 2012
A51: Fast Offerings | B51: Fast Offerings | C51: 20 | D51: November | E51: 2012

Sheet Detailed Budget
A1: Income and Expenses | B1: October 2012 Budget | C1: October 2012 Actual | D1: Variance | E1: November 2012 Budget | F1: November 2012 Actual | G1: Variance | H1: December 2012 Budget | I1: December 2012 Actual | J1: Variance | K1: January 2013 Budget | L1: January 2013 Actual | M1: Variance | N1: February 2013 Budget | O1: February 2013 Actual | P1: Variance | Q1: March 2013 Budget | R1: March 2013 Actual | S1: Variance | T1: April 2013Budget | U1: April 2013 Actual | V1: Variance | W1: May 2013 Budget | X1: May 2013 Actual | Y1: Variance | Z1: June 2013 Budget | AA1: June 2013 Actual | AB1: Variance | AC1: July 2013 Budget | AD1: July 2013 Actual | AE1: Variance | AF1: August 2013 Budget | AG1: August 2013 Actual | AH1: Variance | AI1: September 2013 Budget | AJ1: September 2013 Actual | AK1: Variance | AL1: October 2013 Budget | AM1: October 2013 Actual | AN1: Variance | AO1: November 2013 Budget | AP1: November 2013 Actual | AQ1: Variance | AR1: December 2013 Budget | AS1: December 2013 Actual | AT1: Variance
A3: INCOME
A4: Jeff's Gross | B4: 100 | D4: =C4-B4 -> -100 | E4: 650 | F4: 600 | G4: =F4-E4 -> -50 | J4: =I4-H4 -> 0 | M4: =L4-K4 -> 0 | P4: =O4-N4 -> 0 | S4: =R4-Q4 -> 0 | V4: =U4-T4 -> 0 | Y4: =X4-W4 -> 0 | AB4: =AA4-Z4 -> 0 | AE4: =AD4-AC4 -> 0 | AH4: =AG4-AF4 -> 0 | AK4: =AJ4-AI4 -> 0 | AN4: =AM4-AL4 -> 0 | AQ4: =AP4-AO4 -> 0 | AT4: =AS4-AR4 -> 0
A5: Jeff's Net | B5: 600 | C5: 472.93 | D5: -127.07 | E5: 700 | F5: 705 | G5: 5 | J5: 0 | M5: 0 | P5: 0 | S5: 0 | V5: 0 | Y5: 0 | AB5: 0 | AE5: 0 | AH5: 0 | AK5: 0 | AN5: 0 | AQ5: 0 | AT5: 0
A6: EJ's Gross | B6: 700 | C6: =372.79+719.29 -> 1092.08 | D6: 392.08 | E6: 320 | F6: 300 | G6: -20 | J6: 0 | M6: 0 | P6: 0 | S6: 0 | V6: 0 | Y6: 0 | AB6: 0 | AE6: 0 | AH6: 0 | AK6: 0 | AN6: 0 | AQ6: 0 | AT6: 0
A7: EJ's Net | B7: 600 | C7: =662.21+351.73 -> 1013.94 | D7: 413.94 | E7: 275 | F7: 300 | G7: 25 | J7: 0 | M7: 0 | P7: 0 | S7: 0 | V7: 0 | Y7: 0 | AB7: 0 | AE7: 0 | AH7: 0 | AK7: 0 | AN7: 0 | AQ7: 0 | AT7: 0
A8: EJ's tips | B8: 100 | C8: 30 | D8: -70 | E8: 100 | F8: 115 | G8: 15 | J8: 0 | M8: 0 | P8: 0 | S8: 0 | V8: 0 | Y8: 0 | AB8: 0 | AE8: 0 | AH8: 0 | AK8: 0 | AN8: 0 | AQ8: 0 | AT8: 0
A9: Total Net Income | B9: =SUM(B7,B8,B5) -> 1300 | C9: =SUM(C7,C8,C5) -> 1516.87 | D9: 216.87 | E9: =SUM(E7,E8,E5) -> 1075 | F9: =SUM(F7,F8,F5) -> 1120 | G9: 45 | H9: =SUM(H7,H8,H5) -> 0 | I9: =SUM(I7,I8,I5) -> 0 | J9: 0 | K9: =SUM(K7,K8,K5) -> 0 | L9: =SUM(L7,L8,L5) -> 0 | M9: 0 | N9: =SUM(N7,N8,N5) -> 0 | O9: =SUM(O7,O8,O5) -> 0 | P9: 0 | Q9: =SUM(Q7,Q8,Q5) -> 0 | R9: =SUM(R7,R8,R5) -> 0 | S9: 0 | T9: =SUM(T7,T8,T5) -> 0 | U9: =SUM(U7,U8,U5) -> 0 | V9: 0 | W9: =SUM(W7,W8,W5) -> 0 | X9: =SUM(X7,X8,X5) -> 0 | Y9: 0 | Z9: =SUM(Z7,Z8,Z5) -> 0 | AA9: =SUM(AA7,AA8,AA5) -> 0 | AB9: 0 | AC9: =SUM(AC7,AC8,AC5) -> 0 | AD9: =SUM(AD7,AD8,AD5) -> 0 | AE9: 0 | AF9: =SUM(AF7,AF8,AF5) -> 0 | AG9: =SUM(AG7,AG8,AG5) -> 0 | AH9: 0 | AI9: =SUM(AI7,AI8,AI5) -> 0 | AJ9: =SUM(AJ7,AJ8,AJ5) -> 0 | AK9: 0 | AL9: =SUM(AL7,AL8,AL5) -> 0 | AM9: =SUM(AM7,AM8,AM5) -> 0 | AN9: 0 | AO9: =SUM(AO7,AO8,AO5) -> 0 | AP9: =SUM(AP7,AP8,AP5) -> 0 | AQ9: 0 | AR9: =SUM(AR7,AR8,AR5) -> 0 | AS9: =SUM(AS7,AS8,AS5) -> 0 | AT9: 0
A11: Fast Offerings | B11: 20 | C11: =SUMIFS('Expenses List'!C:C,'Expenses List'!B:B,"Fast Offerings",'Expenses List'!D:D,"October",'Expenses List'!E:E,"2012") -> 20 | D11: =C11-B11 -> 0 | E11: 30 | F11: =SUMIFS('Expenses List'!C:C,'Expenses List'!B:B,"Fast Offerings",'Expenses List'!D:D,"November",'Expenses List'!E:E,"2012") -> 20 | G11: =F11-E11 -> -10 | I11: =SUMIFS('Expenses List'!C:C,'Expenses List'!B:B,"Fast Offerings",'Expenses List'!D:D,"December",'Expenses List'!E:E,"2012") -> 0 | J11: =I11-H11 -> 0 | L11: =SUMIFS('Expenses List'!C:C,'Expenses List'!B:B,"Fast Offerings",'Expenses List'!D:D,"January",'Expenses List'!E:E,"2013") -> 0 | M11: =L11-K11 -> 0 | O11: =SUMIFS('Expenses List'!C:C,'Expenses List'!B:B,"Fast Offerings",'Expenses List'!D:D,"February",'Expenses List'!E:E,"2013") -> 0 | P11: =O11-N11 -> 0 | R11: =SUMIFS('Expenses List'!C:C,'Expenses List'!B:B,"Fast Offerings",'Expenses List'!D:D,"March",'Expenses List'!E:E,"2013") -> 0 | S11: =R11-Q11 -> 0 | U11: =SUMIFS('Expenses List'!C:C,'Expenses List'!B:B,"Fast Offerings",'Expenses List'!D:D,"April",'Expenses List'!E:E,"2013") -> 0 | V11: =U11-T11 -> 0 | X11: =SUMIFS('Expenses List'!C:C,'Expenses List'!B:B,"Fast Offerings",'Expenses List'!D:D,"May",'Expenses List'!E:E,"2013") -> 0 | Y11: =X11-W11 -> 0 | AA11: =SUMIFS('Expenses List'!C:C,'Expenses List'!B:B,"Fast Offerings",'Expenses List'!D:D,"June",'Expenses List'!E:E,"2013") -> 0 | AB11: =AA11-Z11 -> 0 | AD11: =SUMIFS('Expenses List'!C:C,'Expenses List'!B:B,"Fast Offerings",'Expenses List'!D:D,"July",'Expenses List'!E:E,"2013") -> 0 | AE11: =AD11-AC11 -> 0 | AG11: =SUMIFS('Expenses List'!C:C,'Expenses List'!B:B,"Fast Offerings",'Expenses List'!D:D,"August",'Expenses List'!E:E,"2013") -> 0 | AH11: =AG11-AF11 -> 0 | AJ11: =SUMIFS('Expenses List'!C:C,'Expenses List'!B:B,"Fast Offerings",'Expenses List'!D:D,"September",'Expenses List'!E:E,"2013") -> 0 | AK11: =AJ11-AI11 -> 0 | AM11: =SUMIFS('Expenses List'!C:C,'Expenses List'!B:B,"Fast Offerings",'Expenses List'!D:D,"October",'Expenses List'!E:E,"2013") -> 0 | AN11: =AM11-AL11 -> 0 | AP11: =SUMIFS('Expenses List'!C:C,'Expenses List'!B:B,"Fast Offerings",'Expenses List'!D:D,"November",'Expenses List'!E:E,"2013") -> 0 | AQ11: =AP11-AO11 -> 0 | AS11: =SUMIFS('Expenses List'!C:C,'Expenses List'!B:B,"Fast Offerings",'Expenses List'!D:D,"December",'Expenses List'!E:E,"2013") -> 0 | AT11: =AS11-AR11 -> 0
A12: Savings | B12: 20 | C12: =SUMIFS('Expenses List'!C:C,'Expenses List'!B:B,"Savings",'Expenses List'!D:D,"October",'Expenses List'!E:E,"2012") -> 0 | D12: =C12-B12 -> -20 | E12: 30 | F12: =SUMIFS('Expenses List'!C:C,'Expenses List'!B:B,"Savings",'Expenses List'!D:D,"November",'Expenses List'!E:E,"2012") -> 0 | G12: =F12-E12 -> -30 | I12: =SUMIFS('Expenses List'!C:C,'Expenses List'!B:B,"Savings",'Expenses List'!D:D,"December",'Expenses List'!E:E,"2012") -> 0 | J12: =I12-H12 -> 0 | L12: =SUMIFS('Expenses List'!C:C,'Expenses List'!B:B,"Savings",'Expenses List'!D:D,"January",'Expenses List'!E:E,"2013") -> 0 | M12: =L12-K12 -> 0 | O12: =SUMIFS('Expenses List'!C:C,'Expenses List'!B:B,"Savings",'Expenses List'!D:D,"February",'Expenses List'!E:E,"2013") -> 0 | P12: =O12-N12 -> 0 | R12: =SUMIFS('Expenses List'!C:C,'Expenses List'!B:B,"Savings",'Expenses List'!D:D,"March",'Expenses List'!E:E,"2013") -> 0 | S12: =R12-Q12 -> 0 | U12: =SUMIFS('Expenses List'!C:C,'Expenses List'!B:B,"Savings",'Expenses List'!D:D,"April",'Expenses List'!E:E,"2013") -> 0 | V12: =U12-T12 -> 0 | X12: =SUMIFS('Expenses List'!C:C,'Expenses List'!B:B,"Savings",'Expenses List'!D:D,"May",'Expenses List'!E:E,"2013") -> 0 | Y12: =X12-W12 -> 0 | AA12: =SUMIFS('Expenses List'!C:C,'Expenses List'!B:B,"Savings",'Expenses List'!D:D,"June",'Expenses List'!E:E,"2013") -> 0 | AB12: =AA12-Z12 -> 0 | AD12: =SUMIFS('Expenses List'!C:C,'Expenses List'!B:B,"Savings",'Expenses List'!D:D,"July",'Expenses List'!E:E,"2013") -> 0 | AE12: =AD12-AC12 -> 0 | AG12: =SUMIFS('Expenses List'!C:C,'Expenses List'!B:B,"Savings",'Expenses List'!D:D,"August",'Expenses List'!E:E,"2013") -> 0 | AH12: =AG12-AF12 -> 0 | AJ12: =SUMIFS('Expenses List'!C:C,'Expenses List'!B:B,"Savings",'Expenses List'!D:D,"September",'Expenses List'!E:E,"2013") -> 0 | AK12: =AJ12-AI12 -> 0 | AM12: =SUMIFS('Expenses List'!C:C,'Expenses List'!B:B,"Savings",'Expenses List'!D:D,"October",'Expenses List'!E:E,"2013") -> 0 | AN12: =AM12-AL12 -> 0 | AP12: =SUMIFS('Expenses List'!C:C,'Expenses List'!B:B,"Savings",'Expenses List'!D:D,"November",'Expenses List'!E:E,"2013") -> 0 | AQ12: =AP12-AO12 -> 0 | AS12: =SUMIFS('Expenses List'!C:C,'Expenses List'!B:B,"Savings",'Expenses List'!D:D,"December",'Expenses List'!E:E,"2013") -> 0 | AT12: =AS12-AR12 -> 0
A13: Tithing | B13: 450 | C13: =SUMIFS('Expenses List'!C:C,'Expenses List'!B:B,"Tithing",'Expenses List'!D:D,"October",'Expenses List'!E:E,"2012") -> 457 | D13: =C13-B13 -> 7 | E13: 40 | F13: =SUMIFS('Expenses List'!C:C,'Expenses List'!B:B,"Tithing",'Expenses List'!D:D,"November",'Expenses List'!E:E,"2012") -> 50 | G13: =F13-E13 -> 10 | I13: =SUMIFS('Expenses List'!C:C,'Expenses List'!B:B,"Tithing",'Expenses List'!D:D,"December",'Expenses List'!E:E,"2012") -> 0 | J13: =I13-H13 -> 0 | L13: =SUMIFS('Expenses List'!C:C,'Expenses List'!B:B,"Tithing",'Expenses List'!D:D,"January",'Expenses List'!E:E,"2013") -> 0 | M13: =L13-K13 -> 0 | O13: =SUMIFS('Expenses List'!C:C,'Expenses List'!B:B,"Tithing",'Expenses List'!D:D,"February",'Expenses List'!E:E,"2013") -> 0 | P13: =O13-N13 -> 0 | R13: =SUMIFS('Expenses List'!C:C,'Expenses List'!B:B,"Tithing",'Expenses List'!D:D,"March",'Expenses List'!E:E,"2013") -> 0 | S13: =R13-Q13 -> 0 | U13: =SUMIFS('Expenses List'!C:C,'Expenses List'!B:B,"Tithing",'Expenses List'!D:D,"April",'Expenses List'!E:E,"2013") -> 0 | V13: =U13-T13 -> 0 | X13: =SUMIFS('Expenses List'!C:C,'Expenses List'!B:B,"Tithing",'Expenses List'!D:D,"May",'Expenses List'!E:E,"2013") -> 0 | Y13: =X13-W13 -> 0 | AA13: =SUMIFS('Expenses List'!C:C,'Expenses List'!B:B,"Tithing",'Expenses List'!D:D,"June",'Expenses List'!E:E,"2013") -> 0 | AB13: =AA13-Z13 -> 0 | AD13: =SUMIFS('Expenses List'!C:C,'Expenses List'!B:B,"Tithing",'Expenses List'!D:D,"July",'Expenses List'!E:E,"2013") -> 0 | AE13: =AD13-AC13 -> 0 | AG13: =SUMIFS('Expenses List'!C:C,'Expenses List'!B:B,"Tithing",'Expenses List'!D:D,"August",'Expenses List'!E:E,"2013") -> 0 | AH13: =AG13-AF13 -> 0 | AJ13: =SUMIFS('Expenses List'!C:C,'Expenses List'!B:B,"Tithing",'Expenses List'!D:D,"September",'Expenses List'!E:E,"2013") -> 0 | AK13: =AJ13-AI13 -> 0 | AM13: =SUMIFS('Expenses List'!C:C,'Expenses List'!B:B,"Tithing",'Expenses List'!D:D,"October",'Expenses List'!E:E,"2013") -> 0 | AN13: =AM13-AL13 -> 0 | AP13: =SUMIFS('Expenses List'!C:C,'Expenses List'!B:B,"Tithing",'Expenses List'!D:D,"November",'Expenses List'!E:E,"2013") -> 0 | AQ13: =AP13-AO13 -> 0 | AS13: =SUMIFS('Expenses List'!C:C,'Expenses List'!B:B,"Tithing",'Expenses List'!D:D,"December",'Expenses List'!E:E,"2013") -> 0 | AT13: =AS13-AR13 -> 0
A14: Total Saving/Giving | B14: =SUM(B11:B13) -> 490 | C14: =SUM(C11:C13) -> 477 | D14: =C14-B14 -> -13 | E14: =SUM(E11:E13) -> 100 | F14: =SUM(F11:F13) -> 70 | G14: =F14-E14 -> -30 | H14: =SUM(H11:H13) -> 0 | I14: =SUM(I11:I13) -> 0 | J14: =I14-H14 -> 0 | K14: =SUM(K11:K13) -> 0 | L14: =SUM(L11:L13) -> 0 | M14: =L14-K14 -> 0 | N14: =SUM(N11:N13) -> 0 | O14: =SUM(O11:O13) -> 0 | P14: =O14-N14 -> 0 | Q14: =SUM(Q11:Q13) -> 0 | R14: =SUM(R11:R13) -> 0 | S14: =R14-Q14 -> 0 | T14: =SUM(T11:T13) -> 0 | U14: =SUM(U11:U13) -> 0 | V14: =U14-T14 -> 0 | W14: =SUM(W11:W13) -> 0 | X14: =SUM(X11:X13) -> 0 | Y14: =X14-W14 -> 0 | Z14: =SUM(Z11:Z13) -> 0 | AA14: =SUM(AA11:AA13) -> 0 | AB14: =AA14-Z14 -> 0 | AC14: =SUM(AC11:AC13) -> 0 | AD14: =SUM(AD11:AD13) -> 0 | AE14: =AD14-AC14 -> 0 | AF14: =SUM(AF11:AF13) -> 0 | AG14: =SUM(AG11:AG13) -> 0 | AH14: =AG14-AF14 -> 0 | AI14: =SUM(AI11:AI13) -> 0 | AJ14: =SUM(AJ11:AJ13) -> 0 | AK14: =AJ14-AI14 -> 0 | AL14: =SUM(AL11:AL13) -> 0 | AM14: =SUM(AM11:AM13) -> 0 | AN14: =AM14-AL14 -> 0 | AO14: =SUM(AO11:AO13) -> 0 | AP14: =SUM(AP11:AP13) -> 0 | AQ14: =AP14-AO14 -> 0 | AR14: =SUM(AR11:AR13) -> 0 | AS14: =SUM(AS11:AS13) -> 0 | AT14: =AS14-AR14 -> 0
A16: Net after Giving | B16: =B9-B14 -> 810 | C16: =C9-C14 -> 1039.87 | D16: =C16-B16 -> 229.87 | E16: =E9-E14 -> 975 | F16: =F9-F14 -> 1050 | G16: =F16-E16 -> 75 | H16: =H9-H14 -> 0 | I16: =I9-I14 -> 0 | J16: =I16-H16 -> 0 | K16: =K9-K14 -> 0 | L16: =L9-L14 -> 0 | M16: =L16-K16 -> 0 | N16: =N9-N14 -> 0 | O16: =O9-O14 -> 0 | P16: =O16-N16 -> 0 | Q16: =Q9-Q14 -> 0 | R16: =R9-R14 -> 0 | S16: =R16-Q16 -> 0 | T16: =T9-T14 -> 0 | U16: =U9-U14 -> 0 | V16: =U16-T16 -> 0 | W16: =W9-W14 -> 0 | X16: =X9-X14 -> 0 | Y16: =X16-W16 -> 0 | Z16: =Z9-Z14 -> 0 | AA16: =AA9-AA14 -> 0 | AB16: =AA16-Z16 -> 0 | AC16: =AC9-AC14 -> 0 | AD16: =AD9-AD14 -> 0 | AE16: =AD16-AC16 -> 0 | AF16: =AF9-AF14 -> 0 | AG16: =AG9-AG14 -> 0 | AH16: =AG16-AF16 -> 0 | AI16: =AI9-AI14 -> 0 | AJ16: =AJ9-AJ14 -> 0 | AK16: =AJ16-AI16 -> 0 | AL16: =AL9-AL14 -> 0 | AM16: =AM9-AM14 -> 0 | AN16: =AM16-AL16 -> 0 | AO16: =AO9-AO14 -> 0 | AP16: =AP9-AP14 -> 0 | AQ16: =AP16-AO16 -> 0 | AR16: =AR9-AR14 -> 0 | AS16: =AS9-AS14 -> 0 | AT16: =AS16-AR16 -> 0
A18: EXPENSES
A19: Clothing/Hair | B19: 15 | C19: =SUMIFS('Expenses List'!C:C,'Expenses List'!B:B,"Clothing/Hair",'Expenses List'!D:D,"October",'Expenses List'!E:E,"2012") -> 15 | D19: =B19-C19 -> 0 | F19: =SUMIFS('Expenses List'!C:C,'Expenses List'!B:B,"Clothing/Hair",'Expenses List'!D:D,"November",'Expenses List'!E:E,"2012") -> 0 | G19: =E19-F19 -> 0 | I19: =SUMIFS('Expenses List'!C:C,'Expenses List'!B:B,"Clothing/Hair",'Expenses List'!D:D,"December",'Expenses List'!E:E,"2012") -> 0 | J19: =H19-I19 -> 0 | L19: =SUMIFS('Expenses List'!C:C,'Expenses List'!B:B,"Clothing/Hair",'Expenses List'!D:D,"January",'Expenses List'!E:E,"2013") -> 0 | M19: =K19-L19 -> 0 | O19: =SUMIFS('Expenses List'!C:C,'Expenses List'!B:B,"Clothing/Hair",'Expenses List'!D:D,"February",'Expenses List'!E:E,"2013") -> 0 | P19: =N19-O19 -> 0 | R19: =SUMIFS('Expenses List'!C:C,'Expenses List'!B:B,"Clothing/Hair",'Expenses List'!D:D,"March",'Expenses List'!E:E,"2013") -> 0 | S19: =Q19-R19 -> 0 | U19: =SUMIFS('Expenses List'!C:C,'Expenses List'!B:B,"Clothing/Hair",'Expenses List'!D:D,"April",'Expenses List'!E:E,"2013") -> 0 | V19: =T19-U19 -> 0 | X19: =SUMIFS('Expenses List'!C:C,'Expenses List'!B:B,"Clothing/Hair",'Expenses List'!D:D,"May",'Expenses List'!E:E,"2013") -> 0 | Y19: =W19-X19 -> 0 | AA19: =SUMIFS('Expenses List'!C:C,'Expenses List'!B:B,"Clothing/Hair",'Expenses List'!D:D,"June",'Expenses List'!E:E,"2013") -> 0 | AB19: =Z19-AA19 -> 0 | AD19: =SUMIFS('Expenses List'!C:C,'Expenses List'!B:B,"Clothing/Hair",'Expenses List'!D:D,"July",'Expenses List'!E:E,"2013") -> 0 | AE19: =AC19-AD19 -> 0 | AG19: =SUMIFS('Expenses List'!C:C,'Expenses List'!B:B,"Clothing/Hair",'Expenses List'!D:D,"August",'Expenses List'!E:E,"2013") -> 0 | AH19: =AF19-AG19 -> 0 | AJ19: =SUMIFS('Expenses List'!C:C,'Expenses List'!B:B,"Clothing/Hair",'Expenses List'!D:D,"September",'Expenses List'!E:E,"2013") -> 0 | AK19: =AI19-AJ19 -> 0 | AM19: =SUMIFS('Expenses List'!C:C,'Expenses List'!B:B,"Clothing/Hair",'Expenses List'!D:D,"October",'Expenses List'!E:E,"2013") -> 0 | AN19: =AL19-AM19 -> 0 | AP19: =SUMIFS('Expenses List'!C:C,'Expenses List'!B:B,"Clothing/Hair",'Expenses List'!D:D,"November",'Expenses List'!E:E,"2013") -> 0 | AQ19: =AO19-AP19 -> 0 | AS19: =SUMIFS('Expenses List'!C:C,'Expenses List'!B:B,"Clothing/Hair",'Expenses List'!D:D,"December",'Expenses List'!E:E,"2013") -> 0 | AT19: =AR19-AS19 -> 0
A20: Eating Out | B20: 20 | C20: =SUMIFS('Expenses List'!C:C,'Expenses List'!B:B,"Eating Out",'Expenses List'!D:D,"October",'Expenses List'!E:E,"2012") -> 18.35 | D20: =B20-C20 -> 1.65 | E20: 20 | F20: =SUMIFS('Expenses List'!C:C,'Expenses List'!B:B,"Eating Out",'Expenses List'!D:D,"November",'Expenses List'!E:E,"2012") -> 15.76 | G20: =E20-F20 -> 4.24 | I20: =SUMIFS('Expenses List'!C:C,'Expenses List'!B:B,"Eating Out",'Expenses List'!D:D,"December",'Expenses List'!E:E,"2012") -> 0 | J20: =H20-I20 -> 0 | L20: =SUMIFS('Expenses List'!C:C,'Expenses List'!B:B,"Eating Out",'Expenses List'!D:D,"January",'Expenses List'!E:E,"2013") -> 0 | M20: =K20-L20 -> 0 | O20: =SUMIFS('Expenses List'!C:C,'Expenses List'!B:B,"Eating Out",'Expenses List'!D:D,"February",'Expenses List'!E:E,"2013") -> 0 | P20: =N20-O20 -> 0 | R20: =SUMIFS('Expenses List'!C:C,'Expenses List'!B:B,"Eating Out",'Expenses List'!D:D,"March",'Expenses List'!E:E,"2013") -> 0 | S20: =Q20-R20 -> 0 | U20: =SUMIFS('Expenses List'!C:C,'Expenses List'!B:B,"Eating Out",'Expenses List'!D:D,"April",'Expenses List'!E:E,"2013") -> 0 | V20: =T20-U20 -> 0 | X20: =SUMIFS('Expenses List'!C:C,'Expenses List'!B:B,"Eating Out",'Expenses List'!D:D,"May",'Expenses List'!E:E,"2013") -> 0 | Y20: =W20-X20 -> 0 | AA20: =SUMIFS('Expenses List'!C:C,'Expenses List'!B:B,"Eating Out",'Expenses List'!D:D,"June",'Expenses List'!E:E,"2013") -> 0 | AB20: =Z20-AA20 -> 0 | AD20: =SUMIFS('Expenses List'!C:C,'Expenses List'!B:B,"Eating Out",'Expenses List'!D:D,"July",'Expenses List'!E:E,"2013") -> 0 | AE20: =AC20-AD20 -> 0 | AG20: =SUMIFS('Expenses List'!C:C,'Expenses List'!B:B,"Eating Out",'Expenses List'!D:D,"August",'Expenses List'!E:E,"2013") -> 0 | AH20: =AF20-AG20 -> 0 | AJ20: =SUMIFS('Expenses List'!C:C,'Expenses List'!B:B,"Eating Out",'Expenses List'!D:D,"September",'Expenses List'!E:E,"2013") -> 0 | AK20: =AI20-AJ20 -> 0 | AM20: =SUMIFS('Expenses List'!C:C,'Expenses List'!B:B,"Eating Out",'Expenses List'!D:D,"October",'Expenses List'!E:E,"2013") -> 0 | AN20: =AL20-AM20 -> 0 | AP20: =SUMIFS('Expenses List'!C:C,'Expenses List'!B:B,"Eating Out",'Expenses List'!D:D,"November",'Expenses List'!E:E,"2013") -> 0 | AQ20: =AO20-AP20 -> 0 | AS20: =SUMIFS('Expenses List'!C:C,'Expenses List'!B:B,"Eating Out",'Expenses List'!D:D,"December",'Expenses List'!E:E,"2013") -> 0 | AT20: =AR20-AS20 -> 0
A21: Fun | B21: 120 | C21: =SUMIFS('Expenses List'!C:C,'Expenses List'!B:B,"Fun",'Expenses List'!D:D,"October",'Expenses List'!E:E,"2012") -> 140.47 | D21: =B21-C21 -> -20.47 | E21: 50 | F21: =SUMIFS('Expenses List'!C:C,'Expenses List'!B:B,"Fun",'Expenses List'!D:D,"November",'Expenses List'!E:E,"2012") -> 0 | G21: =E21-F21 -> 50 | I21: =SUMIFS('Expenses List'!C:C,'Expenses List'!B:B,"Fun",'Expenses List'!D:D,"December",'Expenses List'!E:E,"2012") -> 0 | J21: =H21-I21 -> 0 | L21: =SUMIFS('Expenses List'!C:C,'Expenses List'!B:B,"Fun",'Expenses List'!D:D,"January",'Expenses List'!E:E,"2013") -> 0 | M21: =K21-L21 -> 0 | O21: =SUMIFS('Expenses List'!C:C,'Expenses List'!B:B,"Fun",'Expenses List'!D:D,"February",'Expenses List'!E:E,"2013") -> 0 | P21: =N21-O21 -> 0 | R21: =SUMIFS('Expenses List'!C:C,'Expenses List'!B:B,"Fun",'Expenses List'!D:D,"March",'Expenses List'!E:E,"2013") -> 0 | S21: =Q21-R21 -> 0 | U21: =SUMIFS('Expenses List'!C:C,'Expenses List'!B:B,"Fun",'Expenses List'!D:D,"April",'Expenses List'!E:E,"2013") -> 0 | V21: =T21-U21 -> 0 | X21: =SUMIFS('Expenses List'!C:C,'Expenses List'!B:B,"Fun",'Expenses List'!D:D,"May",'Expenses List'!E:E,"2013") -> 0 | Y21: =W21-X21 -> 0 | AA21: =SUMIFS('Expenses List'!C:C,'Expenses List'!B:B,"Fun",'Expenses List'!D:D,"June",'Expenses List'!E:E,"2013") -> 0 | AB21: =Z21-AA21 -> 0 | AD21: =SUMIFS('Expenses List'!C:C,'Expenses List'!B:B,"Fun",'Expenses List'!D:D,"July",'Expenses List'!E:E,"2013") -> 0 | AE21: =AC21-AD21 -> 0 | AG21: =SUMIFS('Expenses List'!C:C,'Expenses List'!B:B,"Fun",'Expenses List'!D:D,"August",'Expenses List'!E:E,"2013") -> 0 | AH21: =AF21-AG21 -> 0 | AJ21: =SUMIFS('Expenses List'!C:C,'Expenses List'!B:B,"Fun",'Expenses List'!D:D,"September",'Expenses List'!E:E,"2013") -> 0 | AK21: =AI21-AJ21 -> 0 | AM21: =SUMIFS('Expenses List'!C:C,'Expenses List'!B:B,"Fun",'Expenses List'!D:D,"October",'Expenses List'!E:E,"2013") -> 0 | AN21: =AL21-AM21 -> 0 | AP21: =SUMIFS('Expenses List'!C:C,'Expenses List'!B:B,"Fun",'Expenses List'!D:D,"November",'Expenses List'!E:E,"2013") -> 0 | AQ21: =AO21-AP21 -> 0 | AS21: =SUMIFS('Expenses List'!C:C,'Expenses List'!B:B,"Fun",'Expenses List'!D:D,"December",'Expenses List'!E:E,"2013") -> 0 | AT21: =AR21-AS21 -> 0
A22: Gas | B22: 140 | C22: =SUMIFS('Expenses List'!C:C,'Expenses List'!B:B,"Gas",'Expenses List'!D:D,"October",'Expenses List'!E:E,"2012") -> 149.87 | D22: =B22-C22 -> -9.87 | E22: 240 | F22: =SUMIFS('Expenses List'!C:C,'Expenses List'!B:B,"Gas",'Expenses List'!D:D,"November",'Expenses List'!E:E,"2012") -> 246.12 | G22: =E22-F22 -> -6.12 | I22: =SUMIFS('Expenses List'!C:C,'Expenses List'!B:B,"Gas",'Expenses List'!D:D,"December",'Expenses List'!E:E,"2012") -> 0 | J22: =H22-I22 -> 0 | L22: =SUMIFS('Expenses List'!C:C,'Expenses List'!B:B,"Gas",'Expenses List'!D:D,"January",'Expenses List'!E:E,"2013") -> 0 | M22: =K22-L22 -> 0 | O22: =SUMIFS('Expenses List'!C:C,'Expenses List'!B:B,"Gas",'Expenses List'!D:D,"February",'Expenses List'!E:E,"2013") -> 0 | P22: =N22-O22 -> 0 | R22: =SUMIFS('Expenses List'!C:C,'Expenses List'!B:B,"Gas",'Expenses List'!D:D,"March",'Expenses List'!E:E,"2013") -> 0 | S22: =Q22-R22 -> 0 | U22: =SUMIFS('Expenses List'!C:C,'Expenses List'!B:B,"Gas",'Expenses List'!D:D,"April",'Expenses List'!E:E,"2013") -> 0 | V22: =T22-U22 -> 0 | X22: =SUMIFS('Expenses List'!C:C,'Expenses List'!B:B,"Gas",'Expenses List'!D:D,"May",'Expenses List'!E:E,"2013") -> 0 | Y22: =W22-X22 -> 0 | AA22: =SUMIFS('Expenses List'!C:C,'Expenses List'!B:B,"Gas",'Expenses List'!D:D,"June",'Expenses List'!E:E,"2013") -> 0 | AB22: =Z22-AA22 -> 0 | AD22: =SUMIFS('Expenses List'!C:C,'Expenses List'!B:B,"Gas",'Expenses List'!D:D,"July",'Expenses List'!E:E,"2013") -> 0 | AE22: =AC22-AD22 -> 0 | AG22: =SUMIFS('Expenses List'!C:C,'Expenses List'!B:B,"Gas",'Expenses List'!D:D,"August",'Expenses List'!E:E,"2013") -> 0 | AH22: =AF22-AG22 -> 0 | AJ22: =SUMIFS('Expenses List'!C:C,'Expenses List'!B:B,"Gas",'Expenses List'!D:D,"September",'Expenses List'!E:E,"2013") -> 0 | AK22: =AI22-AJ22 -> 0 | AM22: =SUMIFS('Expenses List'!C:C,'Expenses List'!B:B,"Gas",'Expenses List'!D:D,"October",'Expenses List'!E:E,"2013") -> 0 | AN22: =AL22-AM22 -> 0 | AP22: =SUMIFS('Expenses List'!C:C,'Expenses List'!B:B,"Gas",'Expenses List'!D:D,"November",'Expenses List'!E:E,"2013") -> 0 | AQ22: =AO22-AP22 -> 0 | AS22: =SUMIFS('Expenses List'!C:C,'Expenses List'!B:B,"Gas",'Expenses List'!D:D,"December",'Expenses List'!E:E,"2013") -> 0 | AT22: =AR22-AS22 -> 0
A23: Groceries | B23: 240 | C23: =SUMIFS('Expenses List'!C:C,'Expenses List'!B:B,"Groceries",'Expenses List'!D:D,"October",'Expenses List'!E:E,"2012") -> 241.89 | D23: =B23-C23 -> -1.89 | E23: 100 | F23: =SUMIFS('Expenses List'!C:C,'Expenses List'!B:B,"Groceries",'Expenses List'!D:D,"November",'Expenses List'!E:E,"2012") -> 57.69 | G23: =E23-F23 -> 42.31 | I23: =SUMIFS('Expenses List'!C:C,'Expenses List'!B:B,"Groceries",'Expenses List'!D:D,"December",'Expenses List'!E:E,"2012") -> 0 | J23: =H23-I23 -> 0 | L23: =SUMIFS('Expenses List'!C:C,'Expenses List'!B:B,"Groceries",'Expenses List'!D:D,"January",'Expenses List'!E:E,"2013") -> 0 | M23: =K23-L23 -> 0 | O23: =SUMIFS('Expenses List'!C:C,'Expenses List'!B:B,"Groceries",'Expenses List'!D:D,"February",'Expenses List'!E:E,"2013") -> 0 | P23: =N23-O23 -> 0 | R23: =SUMIFS('Expenses List'!C:C,'Expenses List'!B:B,"Groceries",'Expenses List'!D:D,"March",'Expenses List'!E:E,"2013") -> 0 | S23: =Q23-R23 -> 0 | U23: =SUMIFS('Expenses List'!C:C,'Expenses List'!B:B,"Groceries",'Expenses List'!D:D,"April",'Expenses List'!E:E,"2013") -> 0 | V23: =T23-U23 -> 0 | X23: =SUMIFS('Expenses List'!C:C,'Expenses List'!B:B,"Groceries",'Expenses List'!D:D,"May",'Expenses List'!E:E,"2013") -> 0 | Y23: =W23-X23 -> 0 | AA23: =SUMIFS('Expenses List'!C:C,'Expenses List'!B:B,"Groceries",'Expenses List'!D:D,"June",'Expenses List'!E:E,"2013") -> 0 | AB23: =Z23-AA23 -> 0 | AD23: =SUMIFS('Expenses List'!C:C,'Expenses List'!B:B,"Groceries",'Expenses List'!D:D,"July",'Expenses List'!E:E,"2013") -> 0 | AE23: =AC23-AD23 -> 0 | AG23: =SUMIFS('Expenses List'!C:C,'Expenses List'!B:B,"Groceries",'Expenses List'!D:D,"August",'Expenses List'!E:E,"2013") -> 0 | AH23: =AF23-AG23 -> 0 | AJ23: =SUMIFS('Expenses List'!C:C,'Expenses List'!B:B,"Groceries",'Expenses List'!D:D,"September",'Expenses List'!E:E,"2013") -> 0 | AK23: =AI23-AJ23 -> 0 | AM23: =SUMIFS('Expenses List'!C:C,'Expenses List'!B:B,"Groceries",'Expenses List'!D:D,"October",'Expenses List'!E:E,"2013") -> 0 | AN23: =AL23-AM23 -> 0 | AP23: =SUMIFS('Expenses List'!C:C,'Expenses List'!B:B,"Groceries",'Expenses List'!D:D,"November",'Expenses List'!E:E,"2013") -> 0 | AQ23: =AO23-AP23 -> 0 | AS23: =SUMIFS('Expenses List'!C:C,'Expenses List'!B:B,"Groceries",'Expenses List'!D:D,"December",'Expenses List'!E:E,"2013") -> 0 | AT23: =AR23-AS23 -> 0
A24: Gym | B24: 75 | C24: =SUMIFS('Expenses List'!C:C,'Expenses List'!B:B,"Gym",'Expenses List'!D:D,"October",'Expenses List'!E:E,"2012") -> 0 | D24: =B24-C24 -> 75 | F24: =SUMIFS('Expenses List'!C:C,'Expenses List'!B:B,"Gym",'Expenses List'!D:D,"November",'Expenses List'!E:E,"2012") -> 0 | G24: =E24-F24 -> 0 | I24: =SUMIFS('Expenses List'!C:C,'Expenses List'!B:B,"Gym",'Expenses List'!D:D,"December",'Expenses List'!E:E,"2012") -> 0 | J24: =H24-I24 -> 0 | L24: =SUMIFS('Expenses List'!C:C,'Expenses List'!B:B,"Gym",'Expenses List'!D:D,"January",'Expenses List'!E:E,"2013") -> 0 | M24: =K24-L24 -> 0 | O24: =SUMIFS('Expenses List'!C:C,'Expenses List'!B:B,"Gym",'Expenses List'!D:D,"February",'Expenses List'!E:E,"2013") -> 0 | P24: =N24-O24 -> 0 | R24: =SUMIFS('Expenses List'!C:C,'Expenses List'!B:B,"Gym",'Expenses List'!D:D,"March",'Expenses List'!E:E,"2013") -> 0 | S24: =Q24-R24 -> 0 | U24: =SUMIFS('Expenses List'!C:C,'Expenses List'!B:B,"Gym",'Expenses List'!D:D,"April",'Expenses List'!E:E,"2013") -> 0 | V24: =T24-U24 -> 0 | X24: =SUMIFS('Expenses List'!C:C,'Expenses List'!B:B,"Gym",'Expenses List'!D:D,"May",'Expenses List'!E:E,"2013") -> 0 | Y24: =W24-X24 -> 0 | AA24: =SUMIFS('Expenses List'!C:C,'Expenses List'!B:B,"Gym",'Expenses List'!D:D,"June",'Expenses List'!E:E,"2013") -> 0 | AB24: =Z24-AA24 -> 0 | AD24: =SUMIFS('Expenses List'!C:C,'Expenses List'!B:B,"Gym",'Expenses List'!D:D,"July",'Expenses List'!E:E,"2013") -> 0 | AE24: =AC24-AD24 -> 0 | AG24: =SUMIFS('Expenses List'!C:C,'Expenses List'!B:B,"Gym",'Expenses List'!D:D,"August",'Expenses List'!E:E,"2013") -> 0 | AH24: =AF24-AG24 -> 0 | AJ24: =SUMIFS('Expenses List'!C:C,'Expenses List'!B:B,"Gym",'Expenses List'!D:D,"September",'Expenses List'!E:E,"2013") -> 0 | AK24: =AI24-AJ24 -> 0 | AM24: =SUMIFS('Expenses List'!C:C,'Expenses List'!B:B,"Gym",'Expenses List'!D:D,"October",'Expenses List'!E:E,"2013") -> 0 | AN24: =AL24-AM24 -> 0 | AP24: =SUMIFS('Expenses List'!C:C,'Expenses List'!B:B,"Gym",'Expenses List'!D:D,"November",'Expenses List'!E:E,"2013") -> 0 | AQ24: =AO24-AP24 -> 0 | AS24: =SUMIFS('Expenses List'!C:C,'Expenses List'!B:B,"Gym",'Expenses List'!D:D,"December",'Expenses List'!E:E,"2013") -> 0 | AT24: =AR24-AS24 -> 0
A25: Insurance/Car | B25: 30 | C25: =SUMIFS('Expenses List'!C:C,'Expenses List'!B:B,"Insurance/Car",'Expenses List'!D:D,"October",'Expenses List'!E:E,"2012") -> 27.85 | D25: =B25-C25 -> 2.15 | F25: =SUMIFS('Expenses List'!C:C,'Expenses List'!B:B,"Insurance/Car",'Expenses List'!D:D,"November",'Expenses List'!E:E,"2012") -> 0 | G25: =E25-F25 -> 0 | I25: =SUMIFS('Expenses List'!C:C,'Expenses List'!B:B,"Insurance/Car",'Expenses List'!D:D,"December",'Expenses List'!E:E,"2012") -> 0 | J25: =H25-I25 -> 0 | L25: =SUMIFS('Expenses List'!C:C,'Expenses List'!B:B,"Insurance/Car",'Expenses List'!D:D,"January",'Expenses List'!E:E,"2013") -> 0 | M25: =K25-L25 -> 0 | O25: =SUMIFS('Expenses List'!C:C,'Expenses List'!B:B,"Insurance/Car",'Expenses List'!D:D,"February",'Expenses List'!E:E,"2013") -> 0 | P25: =N25-O25 -> 0 | R25: =SUMIFS('Expenses List'!C:C,'Expenses List'!B:B,"Insurance/Car",'Expenses List'!D:D,"March",'Expenses List'!E:E,"2013") -> 0 | S25: =Q25-R25 -> 0 | U25: =SUMIFS('Expenses List'!C:C,'Expenses List'!B:B,"Insurance/Car",'Expenses List'!D:D,"April",'Expenses List'!E:E,"2013") -> 0 | V25: =T25-U25 -> 0 | X25: =SUMIFS('Expenses List'!C:C,'Expenses List'!B:B,"Insurance/Car",'Expenses List'!D:D,"May",'Expenses List'!E:E,"2013") -> 0 | Y25: =W25-X25 -> 0 | AA25: =SUMIFS('Expenses List'!C:C,'Expenses List'!B:B,"Insurance/Car",'Expenses List'!D:D,"June",'Expenses List'!E:E,"2013") -> 0 | AB25: =Z25-AA25 -> 0 | AD25: =SUMIFS('Expenses List'!C:C,'Expenses List'!B:B,"Insurance/Car",'Expenses List'!D:D,"July",'Expenses List'!E:E,"2013") -> 0 | AE25: =AC25-AD25 -> 0 | AG25: =SUMIFS('Expenses List'!C:C,'Expenses List'!B:B,"Insurance/Car",'Expenses List'!D:D,"August",'Expenses List'!E:E,"2013") -> 0 | AH25: =AF25-AG25 -> 0 | AJ25: =SUMIFS('Expenses List'!C:C,'Expenses List'!B:B,"Insurance/Car",'Expenses List'!D:D,"September",'Expenses List'!E:E,"2013") -> 0 | AK25: =AI25-AJ25 -> 0 | AM25: =SUMIFS('Expenses List'!C:C,'Expenses List'!B:B,"Insurance/Car",'Expenses List'!D:D,"October",'Expenses List'!E:E,"2013") -> 0 | AN25: =AL25-AM25 -> 0 | AP25: =SUMIFS('Expenses List'!C:C,'Expenses List'!B:B,"Insurance/Car",'Expenses List'!D:D,"November",'Expenses List'!E:E,"2013") -> 0 | AQ25: =AO25-AP25 -> 0 | AS25: =SUMIFS('Expenses List'!C:C,'Expenses List'!B:B,"Insurance/Car",'Expenses List'!D:D,"December",'Expenses List'!E:E,"2013") -> 0 | AT25: =AR25-AS25 -> 0
A26: Medical/Health | B26: 10 | C26: =SUMIFS('Expenses List'!C:C,'Expenses List'!B:B,"Medical/Health",'Expenses List'!D:D,"October",'Expenses List'!E:E,"2012") -> 4 | D26: =B26-C26 -> 6 | F26: =SUMIFS('Expenses List'!C:C,'Expenses List'!B:B,"Medical/Health",'Expenses List'!D:D,"November",'Expenses List'!E:E,"2012") -> 0 | G26: =E26-F26 -> 0 | I26: =SUMIFS('Expenses List'!C:C,'Expenses List'!B:B,"Medical/Health",'Expenses List'!D:D,"December",'Expenses List'!E:E,"2012") -> 0 | J26: =H26-I26 -> 0 | L26: =SUMIFS('Expenses List'!C:C,'Expenses List'!B:B,"Medical/Health",'Expenses List'!D:D,"January",'Expenses List'!E:E,"2013") -> 0 | M26: =K26-L26 -> 0 | O26: =SUMIFS('Expenses List'!C:C,'Expenses List'!B:B,"Medical/Health",'Expenses List'!D:D,"February",'Expenses List'!E:E,"2013") -> 0 | P26: =N26-O26 -> 0 | R26: =SUMIFS('Expenses List'!C:C,'Expenses List'!B:B,"Medical/Health",'Expenses List'!D:D,"March",'Expenses List'!E:E,"2013") -> 0 | S26: =Q26-R26 -> 0 | U26: =SUMIFS('Expenses List'!C:C,'Expenses List'!B:B,"Medical/Health",'Expenses List'!D:D,"April",'Expenses List'!E:E,"2013") -> 0 | V26: =T26-U26 -> 0 | X26: =SUMIFS('Expenses List'!C:C,'Expenses List'!B:B,"Medical/Health",'Expenses List'!D:D,"May",'Expenses List'!E:E,"2013") -> 0 | Y26: =W26-X26 -> 0 | AA26: =SUMIFS('Expenses List'!C:C,'Expenses List'!B:B,"Medical/Health",'Expenses List'!D:D,"June",'Expenses List'!E:E,"2013") -> 0 | AB26: =Z26-AA26 -> 0 | AD26: =SUMIFS('Expenses List'!C:C,'Expenses List'!B:B,"Medical/Health",'Expenses List'!D:D,"July",'Expenses List'!E:E,"2013") -> 0 | AE26: =AC26-AD26 -> 0 | AG26: =SUMIFS('Expenses List'!C:C,'Expenses List'!B:B,"Medical/Health",'Expenses List'!D:D,"August",'Expenses List'!E:E,"2013") -> 0 | AH26: =AF26-AG26 -> 0 | AJ26: =SUMIFS('Expenses List'!C:C,'Expenses List'!B:B,"Medical/Health",'Expenses List'!D:D,"September",'Expenses List'!E:E,"2013") -> 0 | AK26: =AI26-AJ26 -> 0 | AM26: =SUMIFS('Expenses List'!C:C,'Expenses List'!B:B,"Medical/Health",'Expenses List'!D:D,"October",'Expenses List'!E:E,"2013") -> 0 | AN26: =AL26-AM26 -> 0 | AP26: =SUMIFS('Expenses List'!C:C,'Expenses List'!B:B,"Medical/Health",'Expenses List'!D:D,"November",'Expenses List'!E:E,"2013") -> 0 | AQ26: =AO26-AP26 -> 0 | AS26: =SUMIFS('Expenses List'!C:C,'Expenses List'!B:B,"Medical/Health",'Expenses List'!D:D,"December",'Expenses List'!E:E,"2013") -> 0 | AT26: =AR26-AS26 -> 0
A27: Misc | B27: 400 | C27: =SUMIFS('Expenses List'!C:C,'Expenses List'!B:B,"Misc",'Expenses List'!D:D,"October",'Expenses List'!E:E,"2012") -> 476.09 | D27: =B27-C27 -> -76.09 | F27: =SUMIFS('Expenses List'!C:C,'Expenses List'!B:B,"Misc",'Expenses List'!D:D,"November",'Expenses List'!E:E,"2012") -> 0 | G27: =E27-F27 -> 0 | I27: =SUMIFS('Expenses List'!C:C,'Expenses List'!B:B,"Misc",'Expenses List'!D:D,"December",'Expenses List'!E:E,"2012") -> 36.4 | J27: =H27-I27 -> -36.4 | L27: =SUMIFS('Expenses List'!C:C,'Expenses List'!B:B,"Misc",'Expenses List'!D:D,"January",'Expenses List'!E:E,"2013") -> 0 | M27: =K27-L27 -> 0 | O27: =SUMIFS('Expenses List'!C:C,'Expenses List'!B:B,"Misc",'Expenses List'!D:D,"February",'Expenses List'!E:E,"2013") -> 0 | P27: =N27-O27 -> 0 | R27: =SUMIFS('Expenses List'!C:C,'Expenses List'!B:B,"Misc",'Expenses List'!D:D,"March",'Expenses List'!E:E,"2013") -> 0 | S27: =Q27-R27 -> 0 | U27: =SUMIFS('Expenses List'!C:C,'Expenses List'!B:B,"Misc",'Expenses List'!D:D,"April",'Expenses List'!E:E,"2013") -> 0 | V27: =T27-U27 -> 0 | X27: =SUMIFS('Expenses List'!C:C,'Expenses List'!B:B,"Misc",'Expenses List'!D:D,"May",'Expenses List'!E:E,"2013") -> 0 | Y27: =W27-X27 -> 0 | AA27: =SUMIFS('Expenses List'!C:C,'Expenses List'!B:B,"Misc",'Expenses List'!D:D,"June",'Expenses List'!E:E,"2013") -> 0 | AB27: =Z27-AA27 -> 0 | AD27: =SUMIFS('Expenses List'!C:C,'Expenses List'!B:B,"Misc",'Expenses List'!D:D,"July",'Expenses List'!E:E,"2013") -> 0 | AE27: =AC27-AD27 -> 0 | AG27: =SUMIFS('Expenses List'!C:C,'Expenses List'!B:B,"Misc",'Expenses List'!D:D,"August",'Expenses List'!E:E,"2013") -> 0 | AH27: =AF27-AG27 -> 0 | AJ27: =SUMIFS('Expenses List'!C:C,'Expenses List'!B:B,"Misc",'Expenses List'!D:D,"September",'Expenses List'!E:E,"2013") -> 0 | AK27: =AI27-AJ27 -> 0 | AM27: =SUMIFS('Expenses List'!C:C,'Expenses List'!B:B,"Misc",'Expenses List'!D:D,"October",'Expenses List'!E:E,"2013") -> 0 | AN27: =AL27-AM27 -> 0 | AP27: =SUMIFS('Expenses List'!C:C,'Expenses List'!B:B,"Misc",'Expenses List'!D:D,"November",'Expenses List'!E:E,"2013") -> 0 | AQ27: =AO27-AP27 -> 0 | AS27: =SUMIFS('Expenses List'!C:C,'Expenses List'!B:B,"Misc",'Expenses List'!D:D,"December",'Expenses List'!E:E,"2013") -> 0 | AT27: =AR27-AS27 -> 0
A28: Rent | B28: 605 | C28: =SUMIFS('Expenses List'!C:C,'Expenses List'!B:B,"Rent",'Expenses List'!D:D,"October",'Expenses List'!E:E,"2012") -> 611 | D28: =B28-C28 -> -6 | E28: 605 | F28: =SUMIFS('Expenses List'!C:C,'Expenses List'!B:B,"Rent",'Expenses List'!D:D,"November",'Expenses List'!E:E,"2012") -> 567.27 | G28: =E28-F28 -> 37.73 | I28: =SUMIFS('Expenses List'!C:C,'Expenses List'!B:B,"Rent",'Expenses List'!D:D,"December",'Expenses List'!E:E,"2012") -> 0 | J28: =H28-I28 -> 0 | L28: =SUMIFS('Expenses List'!C:C,'Expenses List'!B:B,"Rent",'Expenses List'!D:D,"January",'Expenses List'!E:E,"2013") -> 0 | M28: =K28-L28 -> 0 | O28: =SUMIFS('Expenses List'!C:C,'Expenses List'!B:B,"Rent",'Expenses List'!D:D,"February",'Expenses List'!E:E,"2013") -> 0 | P28: =N28-O28 -> 0 | R28: =SUMIFS('Expenses List'!C:C,'Expenses List'!B:B,"Rent",'Expenses List'!D:D,"March",'Expenses List'!E:E,"2013") -> 0 | S28: =Q28-R28 -> 0 | U28: =SUMIFS('Expenses List'!C:C,'Expenses List'!B:B,"Rent",'Expenses List'!D:D,"April",'Expenses List'!E:E,"2013") -> 0 | V28: =T28-U28 -> 0 | X28: =SUMIFS('Expenses List'!C:C,'Expenses List'!B:B,"Rent",'Expenses List'!D:D,"May",'Expenses List'!E:E,"2013") -> 0 | Y28: =W28-X28 -> 0 | AA28: =SUMIFS('Expenses List'!C:C,'Expenses List'!B:B,"Rent",'Expenses List'!D:D,"June",'Expenses List'!E:E,"2013") -> 0 | AB28: =Z28-AA28 -> 0 | AD28: =SUMIFS('Expenses List'!C:C,'Expenses List'!B:B,"Rent",'Expenses List'!D:D,"July",'Expenses List'!E:E,"2013") -> 0 | AE28: =AC28-AD28 -> 0 | AG28: =SUMIFS('Expenses List'!C:C,'Expenses List'!B:B,"Rent",'Expenses List'!D:D,"August",'Expenses List'!E:E,"2013") -> 0 | AH28: =AF28-AG28 -> 0 | AJ28: =SUMIFS('Expenses List'!C:C,'Expenses List'!B:B,"Rent",'Expenses List'!D:D,"September",'Expenses List'!E:E,"2013") -> 0 | AK28: =AI28-AJ28 -> 0 | AM28: =SUMIFS('Expenses List'!C:C,'Expenses List'!B:B,"Rent",'Expenses List'!D:D,"October",'Expenses List'!E:E,"2013") -> 0 | AN28: =AL28-AM28 -> 0 | AP28: =SUMIFS('Expenses List'!C:C,'Expenses List'!B:B,"Rent",'Expenses List'!D:D,"November",'Expenses List'!E:E,"2013") -> 0 | AQ28: =AO28-AP28 -> 0 | AS28: =SUMIFS('Expenses List'!C:C,'Expenses List'!B:B,"Rent",'Expenses List'!D:D,"December",'Expenses List'!E:E,"2013") -> 0 | AT28: =AR28-AS28 -> 0
A29: Renter's Insurance | B29: 20 | C29: =SUMIFS('Expenses List'!C:C,'Expenses List'!B:B,"Renter's Insurance",'Expenses List'!D:D,"October",'Expenses List'!E:E,"2012") -> 0 | D29: =B29-C29 -> 20 | F29: =SUMIFS('Expenses List'!C:C,'Expenses List'!B:B,"Renter's Insurance",'Expenses List'!D:D,"November",'Expenses List'!E:E,"2012") -> 0 | G29: =E29-F29 -> 0 | I29: =SUMIFS('Expenses List'!C:C,'Expenses List'!B:B,"Renter's Insurance",'Expenses List'!D:D,"December",'Expenses List'!E:E,"2012") -> 0 | J29: =H29-I29 -> 0 | L29: =SUMIFS('Expenses List'!C:C,'Expenses List'!B:B,"Renter's Insurance",'Expenses List'!D:D,"January",'Expenses List'!E:E,"2013") -> 0 | M29: =K29-L29 -> 0 | O29: =SUMIFS('Expenses List'!C:C,'Expenses List'!B:B,"Renter's Insurance",'Expenses List'!D:D,"February",'Expenses List'!E:E,"2013") -> 0 | P29: =N29-O29 -> 0 | R29: =SUMIFS('Expenses List'!C:C,'Expenses List'!B:B,"Renter's Insurance",'Expenses List'!D:D,"March",'Expenses List'!E:E,"2013") -> 0 | S29: =Q29-R29 -> 0 | U29: =SUMIFS('Expenses List'!C:C,'Expenses List'!B:B,"Renter's Insurance",'Expenses List'!D:D,"April",'Expenses List'!E:E,"2013") -> 0 | V29: =T29-U29 -> 0 | X29: =SUMIFS('Expenses List'!C:C,'Expenses List'!B:B,"Renter's Insurance",'Expenses List'!D:D,"May",'Expenses List'!E:E,"2013") -> 0 | Y29: =W29-X29 -> 0 | AA29: =SUMIFS('Expenses List'!C:C,'Expenses List'!B:B,"Renter's Insurance",'Expenses List'!D:D,"June",'Expenses List'!E:E,"2013") -> 0 | AB29: =Z29-AA29 -> 0 | AD29: =SUMIFS('Expenses List'!C:C,'Expenses List'!B:B,"Renter's Insurance",'Expenses List'!D:D,"July",'Expenses List'!E:E,"2013") -> 0 | AE29: =AC29-AD29 -> 0 | AG29: =SUMIFS('Expenses List'!C:C,'Expenses List'!B:B,"Renter's Insurance",'Expenses List'!D:D,"August",'Expenses List'!E:E,"2013") -> 0 | AH29: =AF29-AG29 -> 0 | AJ29: =SUMIFS('Expenses List'!C:C,'Expenses List'!B:B,"Renter's Insurance",'Expenses List'!D:D,"September",'Expenses List'!E:E,"2013") -> 0 | AK29: =AI29-AJ29 -> 0 | AM29: =SUMIFS('Expenses List'!C:C,'Expenses List'!B:B,"Renter's Insurance",'Expenses List'!D:D,"October",'Expenses List'!E:E,"2013") -> 0 | AN29: =AL29-AM29 -> 0 | AP29: =SUMIFS('Expenses List'!C:C,'Expenses List'!B:B,"Renter's Insurance",'Expenses List'!D:D,"November",'Expenses List'!E:E,"2013") -> 0 | AQ29: =AO29-AP29 -> 0 | AS29: =SUMIFS('Expenses List'!C:C,'Expenses List'!B:B,"Renter's Insurance",'Expenses List'!D:D,"December",'Expenses List'!E:E,"2013") -> 0 | AT29: =AR29-AS29 -> 0
A30: School | B30: 20 | C30: =SUMIFS('Expenses List'!C:C,'Expenses List'!B:B,"School",'Expenses List'!D:D,"October",'Expenses List'!E:E,"2012") -> 35.45 | D30: =B30-C30 -> -15.45 | F30: =SUMIFS('Expenses List'!C:C,'Expenses List'!B:B,"School",'Expenses List'!D:D,"November",'Expenses List'!E:E,"2012") -> 0 | G30: =E30-F30 -> 0 | I30: =SUMIFS('Expenses List'!C:C,'Expenses List'!B:B,"School",'Expenses List'!D:D,"December",'Expenses List'!E:E,"2012") -> 0 | J30: =H30-I30 -> 0 | L30: =SUMIFS('Expenses List'!C:C,'Expenses List'!B:B,"School",'Expenses List'!D:D,"January",'Expenses List'!E:E,"2013") -> 0 | M30: =K30-L30 -> 0 | O30: =SUMIFS('Expenses List'!C:C,'Expenses List'!B:B,"School",'Expenses List'!D:D,"February",'Expenses List'!E:E,"2013") -> 0 | P30: =N30-O30 -> 0 | R30: =SUMIFS('Expenses List'!C:C,'Expenses List'!B:B,"School",'Expenses List'!D:D,"March",'Expenses List'!E:E,"2013") -> 0 | S30: =Q30-R30 -> 0 | U30: =SUMIFS('Expenses List'!C:C,'Expenses List'!B:B,"School",'Expenses List'!D:D,"April",'Expenses List'!E:E,"2013") -> 0 | V30: =T30-U30 -> 0 | X30: =SUMIFS('Expenses List'!C:C,'Expenses List'!B:B,"School",'Expenses List'!D:D,"May",'Expenses List'!E:E,"2013") -> 0 | Y30: =W30-X30 -> 0 | AA30: =SUMIFS('Expenses List'!C:C,'Expenses List'!B:B,"School",'Expenses List'!D:D,"June",'Expenses List'!E:E,"2013") -> 0 | AB30: =Z30-AA30 -> 0 | AD30: =SUMIFS('Expenses List'!C:C,'Expenses List'!B:B,"School",'Expenses List'!D:D,"July",'Expenses List'!E:E,"2013") -> 0 | AE30: =AC30-AD30 -> 0 | AG30: =SUMIFS('Expenses List'!C:C,'Expenses List'!B:B,"School",'Expenses List'!D:D,"August",'Expenses List'!E:E,"2013") -> 0 | AH30: =AF30-AG30 -> 0 | AJ30: =SUMIFS('Expenses List'!C:C,'Expenses List'!B:B,"School",'Expenses List'!D:D,"September",'Expenses List'!E:E,"2013") -> 0 | AK30: =AI30-AJ30 -> 0 | AM30: =SUMIFS('Expenses List'!C:C,'Expenses List'!B:B,"School",'Expenses List'!D:D,"October",'Expenses List'!E:E,"2013") -> 0 | AN30: =AL30-AM30 -> 0 | AP30: =SUMIFS('Expenses List'!C:C,'Expenses List'!B:B,"School",'Expenses List'!D:D,"November",'Expenses List'!E:E,"2013") -> 0 | AQ30: =AO30-AP30 -> 0 | AS30: =SUMIFS('Expenses List'!C:C,'Expenses List'!B:B,"School",'Expenses List'!D:D,"December",'Expenses List'!E:E,"2013") -> 0 | AT30: =AR30-AS30 -> 0
A31: Travel | B31: 600 | C31: =SUMIFS('Expenses List'!C:C,'Expenses List'!B:B,"Travel",'Expenses List'!D:D,"October",'Expenses List'!E:E,"2012") -> 602.4 | D31: =B31-C31 -> -2.4 | E31: 20 | F31: =SUMIFS('Expenses List'!C:C,'Expenses List'!B:B,"Travel",'Expenses List'!D:D,"November",'Expenses List'!E:E,"2012") -> 38 | G31: =E31-F31 -> -18 | I31: =SUMIFS('Expenses List'!C:C,'Expenses List'!B:B,"Travel",'Expenses List'!D:D,"December",'Expenses List'!E:E,"2012") -> 0 | J31: =H31-I31 -> 0 | L31: =SUMIFS('Expenses List'!C:C,'Expenses List'!B:B,"Travel",'Expenses List'!D:D,"January",'Expenses List'!E:E,"2013") -> 0 | M31: =K31-L31 -> 0 | O31: =SUMIFS('Expenses List'!C:C,'Expenses List'!B:B,"Travel",'Expenses List'!D:D,"February",'Expenses List'!E:E,"2013") -> 0 | P31: =N31-O31 -> 0 | R31: =SUMIFS('Expenses List'!C:C,'Expenses List'!B:B,"Travel",'Expenses List'!D:D,"March",'Expenses List'!E:E,"2013") -> 0 | S31: =Q31-R31 -> 0 | U31: =SUMIFS('Expenses List'!C:C,'Expenses List'!B:B,"Travel",'Expenses List'!D:D,"April",'Expenses List'!E:E,"2013") -> 0 | V31: =T31-U31 -> 0 | X31: =SUMIFS('Expenses List'!C:C,'Expenses List'!B:B,"Travel",'Expenses List'!D:D,"May",'Expenses List'!E:E,"2013") -> 0 | Y31: =W31-X31 -> 0 | AA31: =SUMIFS('Expenses List'!C:C,'Expenses List'!B:B,"Travel",'Expenses List'!D:D,"June",'Expenses List'!E:E,"2013") -> 0 | AB31: =Z31-AA31 -> 0 | AD31: =SUMIFS('Expenses List'!C:C,'Expenses List'!B:B,"Travel",'Expenses List'!D:D,"July",'Expenses List'!E:E,"2013") -> 0 | AE31: =AC31-AD31 -> 0 | AG31: =SUMIFS('Expenses List'!C:C,'Expenses List'!B:B,"Travel",'Expenses List'!D:D,"August",'Expenses List'!E:E,"2013") -> 0 | AH31: =AF31-AG31 -> 0 | AJ31: =SUMIFS('Expenses List'!C:C,'Expenses List'!B:B,"Travel",'Expenses List'!D:D,"September",'Expenses List'!E:E,"2013") -> 0 | AK31: =AI31-AJ31 -> 0 | AM31: =SUMIFS('Expenses List'!C:C,'Expenses List'!B:B,"Travel",'Expenses List'!D:D,"October",'Expenses List'!E:E,"2013") -> 0 | AN31: =AL31-AM31 -> 0 | AP31: =SUMIFS('Expenses List'!C:C,'Expenses List'!B:B,"Travel",'Expenses List'!D:D,"November",'Expenses List'!E:E,"2013") -> 0 | AQ31: =AO31-AP31 -> 0 | AS31: =SUMIFS('Expenses List'!C:C,'Expenses List'!B:B,"Travel",'Expenses List'!D:D,"December",'Expenses List'!E:E,"2013") -> 0 | AT31: =AR31-AS31 -> 0
A32: Utilities/Laundry/Rentals | B32: 20 | C32: =SUMIFS('Expenses List'!C:C,'Expenses List'!B:B,"Utilities/Laundry/Rentals",'Expenses List'!D:D,"October",'Expenses List'!E:E,"2012") -> 25 | D32: =B32-C32 -> -5 | F32: =SUMIFS('Expenses List'!C:C,'Expenses List'!B:B,"Utilities/Laundry/Rentals",'Expenses List'!D:D,"November",'Expenses List'!E:E,"2012") -> 0 | G32: =E32-F32 -> 0 | I32: =SUMIFS('Expenses List'!C:C,'Expenses List'!B:B,"Utilities/Laundry/Rentals",'Expenses List'!D:D,"December",'Expenses List'!E:E,"2012") -> 0 | J32: =H32-I32 -> 0 | L32: =SUMIFS('Expenses List'!C:C,'Expenses List'!B:B,"Utilities/Laundry/Rentals",'Expenses List'!D:D,"January",'Expenses List'!E:E,"2013") -> 0 | M32: =K32-L32 -> 0 | O32: =SUMIFS('Expenses List'!C:C,'Expenses List'!B:B,"Utilities/Laundry/Rentals",'Expenses List'!D:D,"February",'Expenses List'!E:E,"2013") -> 0 | P32: =N32-O32 -> 0 | R32: =SUMIFS('Expenses List'!C:C,'Expenses List'!B:B,"Utilities/Laundry/Rentals",'Expenses List'!D:D,"March",'Expenses List'!E:E,"2013") -> 0 | S32: =Q32-R32 -> 0 | U32: =SUMIFS('Expenses List'!C:C,'Expenses List'!B:B,"Utilities/Laundry/Rentals",'Expenses List'!D:D,"April",'Expenses List'!E:E,"2013") -> 0 | V32: =T32-U32 -> 0 | X32: =SUMIFS('Expenses List'!C:C,'Expenses List'!B:B,"Utilities/Laundry/Rentals",'Expenses List'!D:D,"May",'Expenses List'!E:E,"2013") -> 0 | Y32: =W32-X32 -> 0 | AA32: =SUMIFS('Expenses List'!C:C,'Expenses List'!B:B,"Utilities/Laundry/Rentals",'Expenses List'!D:D,"June",'Expenses List'!E:E,"2013") -> 0 | AB32: =Z32-AA32 -> 0 | AD32: =SUMIFS('Expenses List'!C:C,'Expenses List'!B:B,"Utilities/Laundry/Rentals",'Expenses List'!D:D,"July",'Expenses List'!E:E,"2013") -> 0 | AE32: =AC32-AD32 -> 0 | AG32: =SUMIFS('Expenses List'!C:C,'Expenses List'!B:B,"Utilities/Laundry/Rentals",'Expenses List'!D:D,"August",'Expenses List'!E:E,"2013") -> 0 | AH32: =AF32-AG32 -> 0 | AJ32: =SUMIFS('Expenses List'!C:C,'Expenses List'!B:B,"Utilities/Laundry/Rentals",'Expenses List'!D:D,"September",'Expenses List'!E:E,"2013") -> 0 | AK32: =AI32-AJ32 -> 0 | AM32: =SUMIFS('Expenses List'!C:C,'Expenses List'!B:B,"Utilities/Laundry/Rentals",'Expenses List'!D:D,"October",'Expenses List'!E:E,"2013") -> 0 | AN32: =AL32-AM32 -> 0 | AP32: =SUMIFS('Expenses List'!C:C,'Expenses List'!B:B,"Utilities/Laundry/Rentals",'Expenses List'!D:D,"November",'Expenses List'!E:E,"2013") -> 0 | AQ32: =AO32-AP32 -> 0 | AS32: =SUMIFS('Expenses List'!C:C,'Expenses List'!B:B,"Utilities/Laundry/Rentals",'Expenses List'!D:D,"December",'Expenses List'!E:E,"2013") -> 0 | AT32: =AR32-AS32 -> 0
A33: Total Expenses | B33: =SUM(B19:B32) -> 2315 | C33: =SUM(C19:C32) -> 2347.37 | D33: =B33-C33 -> -32.37 | E33: =SUM(E19:E32) -> 1035 | F33: =SUM(F19:F32) -> 924.84 | G33: =E33-F33 -> 110.16 | H33: =SUM(H19:H32) -> 0 | I33: =SUM(I19:I32) -> 36.4 | J33: =H33-I33 -> -36.4 | K33: =SUM(K19:K32) -> 0 | L33: =SUM(L19:L32) -> 0 | M33: =K33-L33 -> 0 | N33: =SUM(N19:N32) -> 0 | O33: =SUM(O19:O32) -> 0 | P33: =N33-O33 -> 0 | Q33: =SUM(Q19:Q32) -> 0 | R33: =SUM(R19:R32) -> 0 | S33: =Q33-R33 -> 0 | T33: =SUM(T19:T32) -> 0 | U33: =SUM(U19:U32) -> 0 | V33: =T33-U33 -> 0 | W33: =SUM(W19:W32) -> 0 | X33: =SUM(X19:X32) -> 0 | Y33: =W33-X33 -> 0 | Z33: =SUM(Z19:Z32) -> 0 | AA33: =SUM(AA19:AA32) -> 0 | AB33: =Z33-AA33 -> 0 | AC33: =SUM(AC19:AC32) -> 0 | AD33: =SUM(AD19:AD32) -> 0 | AE33: =AC33-AD33 -> 0 | AF33: =SUM(AF19:AF32) -> 0 | AG33: =SUM(AG19:AG32) -> 0 | AH33: =AF33-AG33 -> 0 | AI33: =SUM(AI19:AI32) -> 0 | AJ33: =SUM(AJ19:AJ32) -> 0 | AK33: =AI33-AJ33 -> 0 | AL33: =SUM(AL19:AL32) -> 0 | AM33: =SUM(AM19:AM32) -> 0 | AN33: =AL33-AM33 -> 0 | AO33: =SUM(AO19:AO32) -> 0 | AP33: =SUM(AP19:AP32) -> 0 | AQ33: =AO33-AP33 -> 0 | AR33: =SUM(AR19:AR32) -> 0 | AS33: =SUM(AS19:AS32) -> 0 | AT33: =AR33-AS33 -> 0
A35: Net Remaining | B35: =B16-B33 -> -1505 | C35: =C16-C33 -> -1307.5 | D35: =C35-B35 -> 197.5 | E35: =E16-E33 -> -60 | F35: =F16-F33 -> 125.16 | G35: =F35-E35 -> 185.16 | H35: =H16-H33 -> 0 | I35: =I16-I33 -> -36.4 | J35: =I35-H35 -> -36.4 | K35: =K16-K33 -> 0 | L35: =L16-L33 -> 0 | M35: =L35-K35 -> 0 | N35: =N16-N33 -> 0 | O35: =O16-O33 -> 0 | P35: =O35-N35 -> 0 | Q35: =Q16-Q33 -> 0 | R35: =R16-R33 -> 0 | S35: =R35-Q35 -> 0 | T35: =T16-T33 -> 0 | U35: =U16-U33 -> 0 | V35: =U35-T35 -> 0 | W35: =W16-W33 -> 0 | X35: =X16-X33 -> 0 | Y35: =X35-W35 -> 0 | Z35: =Z16-Z33 -> 0 | AA35: =AA16-AA33 -> 0 | AB35: =AA35-Z35 -> 0 | AC35: =AC16-AC33 -> 0 | AD35: =AD16-AD33 -> 0 | AE35: =AD35-AC35 -> 0 | AF35: =AF16-AF33 -> 0 | AG35: =AG16-AG33 -> 0 | AH35: =AG35-AF35 -> 0 | AI35: =AI16-AI33 -> 0 | AJ35: =AJ16-AJ33 -> 0 | AK35: =AJ35-AI35 -> 0 | AL35: =AL16-AL33 -> 0 | AM35: =AM16-AM33 -> 0 | AN35: =AM35-AL35 -> 0 | AO35: =AO16-AO33 -> 0 | AP35: =AP16-AP33 -> 0 | AQ35: =AP35-AO35 -> 0 | AR35: =AR16-AR33 -> 0 | AS35: =AS16-AS33 -> 0 | AT35: =AS35-AR35 -> 0

Sheet Variance Analysis
G3: November Variance Analysis
